bitfinex/quotes_SOLUSD_20220218
["timestamp","ask_amount","ask_price","bid_price","bid_amount"]
[1645210484726,49.63599512,90.747,90.701,5.511]
[1645210484923,49.63599512,90.747,90.693,23.2175]
[1645210486425,49.63599512,90.747,90.71,16.5425]
[1645210490229,51.19321843,90.747,90.71,16.5425]
[1645210490530,1.55722331,90.747,90.71,16.5425]
[1645210490728,5.51,90.771,90.71,16.5425]
[1645210490729,1.55722331,90.748,90.71,16.5425]
[1645210490930,1.55722331,90.757,90.711,30.3944]
[1645210491128,1.55722331,90.759,90.72,16.5389]
[1645210491532,1.55722331,90.761,90.72,16.5389]
[1645210491834,1.55722331,90.763,90.72,16.5389]
[1645210492031,41.80514292,90.764,90.72,16.5389]
[1645210492535,40.24791961,90.764,90.72,16.5389]
[1645210494833,1.55722331,90.766,90.721,6.0]
[1645210495032,1.55722331,90.77,90.73,16.5376]
[1645210495434,1.55722331,90.772,90.73,16.5376]
[1645210496133,1.55722331,90.774,90.73,16.5376]
[1645210496533,43.25012592,90.773,90.73,16.5376]
[1645210496734,44.80734923,90.773,90.73,16.5376]
[1645210496938,43.25012592,90.773,90.73,16.5376]
[1645210501239,154.85012592,90.773,90.722,24.6691]
[1645210501438,1.55722331,90.77,90.714,5.509]
[1645210501638,1.55722331,90.764,90.713,24.4283]
[1645210501845,1.55722331,90.759,90.69,55.138]
[1645210502041,1.55722331,90.754,90.691,24.2944]
[1645210502344,1.55722331,90.752,90.691,24.2944]
[1645210502539,1.55722331,90.753,90.7,16.5443]
[1645210502741,1.55722331,90.752,90.7,16.5443]
[1645210502941,1.55722331,90.753,90.7,16.5443]
[1645210503941,113.15722331,90.751,90.68,16.5465]
[1645210504142,1.55722331,90.742,90.68,16.5465]
[1645210504343,5.511,90.741,90.68,16.5465]
[1645210504541,1.55722331,90.74,90.68,16.5465]
[1645210504745,48.68965448,90.739,90.68,16.5465]
[1645210504944,5.511,90.738,90.68,16.5465]
[1645210505146,1.55722331,90.735,90.68,16.5465]
[1645210505345,1.55722331,90.738,90.68,16.5465]
[1645210505543,48.68965448,90.739,90.68,16.5465]
[1645210505743,48.68965448,90.739,90.681,2.6293831]
[1645210505945,48.68965448,90.739,90.69,16.5448]
[1645210506545,48.68965448,90.739,90.674,22.9948]
[1645210507245,50.24687779,90.739,90.674,22.9948]
[1645210507447,1.55722331,90.738,90.68,16.5479]
[1645210507645,113.15722331,90.738,90.68,16.5479]
[1645210507849,1.55722331,90.73,90.654,2.6293831]
[1645210508045,5.511,90.737,90.651,22.6246]
[1645210508046,1.55722331,90.726,90.651,22.6246]
[1645210508250,1.55722331,90.722,90.651,22.6246]
[1645210508653,52.39377493,90.723,90.651,22.6246]
[1645210509255,111.6,90.722,90.652,5.513]
[1645210509453,1.55722331,90.728,90.66,16.5516]
[1645210509754,55.1673,90.76,90.651,22.6246]
[1645210509755,1.55722331,90.736,90.661,5.513]
[1645210509954,22.8786,90.739,90.661,2.6293831]
[1645210510154,1.55722331,90.744,90.662,8.1403831]
[1645210510357,1.55722331,90.747,90.67,16.02]
[1645210510654,53.7927114,90.746,90.68,16.5464]
[1645210510854,111.6,90.745,90.68,16.5464]
[1645210511254,113.15722331,90.745,90.68,16.5464]
[1645210511655,1.55722331,90.743,90.68,16.5464]
[1645210511855,5.511,90.742,90.68,16.5464]
[1645210512656,24.23212331,90.745,90.68,16.5464]
[1645210513155,22.6749,90.745,90.68,16.5464]
[1645210513356,7.06822331,90.744,90.68,16.5464]
[1645210513556,1.55722331,90.743,90.68,16.5464]
[1645210513957,22.6749,90.745,90.68,16.5464]
[1645210514157,1.55722331,90.744,90.68,16.5464]
[1645210514357,5.511,90.743,90.68,16.5464]
[1645210514658,22.6749,90.745,90.68,16.5464]
[1645210515676,111.6,90.744,90.68,16.5464]
[1645210516176,22.6749,90.745,90.68,16.5464]
[1645210516375,111.6,90.744,90.68,16.5464]
[1645210516776,7.06822331,90.744,90.68,16.5464]
[1645210517175,1.55722331,90.744,90.681,2.6293831]
[1645210517475,22.6749,90.745,90.69,16.5463]
[1645210518975,111.6,90.744,90.69,16.5463]
[1645210521677,117.111,90.744,90.69,16.5463]
[1645210522278,7.06822331,90.744,90.69,16.5463]
[1645210522486,1.55722331,90.752,90.7,32.5613]
[1645210522683,25.30532331,90.768,90.701,5.511]
[1645210522883,23.7481,90.768,90.701,8.1403831]
[1645210523083,23.7481,90.768,90.702,2.6293831]
[1645210523282,23.7481,90.768,90.703,29.9606]
[1645210523482,47.95674211,90.767,90.703,29.9606]
[1645210523782,47.95674211,90.767,90.71,16.5402]
[1645210524183,47.95674211,90.767,90.711,5.51]
[1645210524484,1.55722331,90.766,90.703,24.4506]
[1645210524682,1.55722331,90.766,90.72,16.54]
[1645210525083,1.55722331,90.764,90.72,16.54]
[1645210525283,1.55722331,90.764,90.703,24.4506]
[1645210525483,1.55722331,90.76,90.703,24.4506]
[1645210525687,1.55722331,90.759,90.71,16.5425]
[1645210525983,1.55722331,90.761,90.71,16.5425]
[1645210526384,1.55722331,90.764,90.71,16.5425]
[1645210526586,1.55722331,90.763,90.71,16.5425]
[1645210527686,1.55722331,90.761,90.71,16.5425]
[1645210528290,1.55722331,90.756,90.71,16.5425]
[1645210528587,1.55722331,90.755,90.71,16.5425]
[1645210529288,1.55722331,90.756,90.71,16.5425]
[1645210529489,1.55722331,90.754,90.71,16.5425]
[1645210529689,52.8012796,90.753,90.71,16.5425]
[1645210531792,1.55722331,90.761,90.71,16.5425]
[1645210532092,1.55722331,90.764,90.711,8.6293831]
[1645210532292,1.55722331,90.769,90.72,16.5384]
[1645210532494,1.55722331,90.77,90.721,29.0856]
[1645210532892,45.57107491,90.769,90.721,29.0856]
[1645210534095,45.57107491,90.769,90.721,23.0856]
[1645210534499,45.57107491,90.769,90.73,16.5388]
[1645210534906,45.57107491,90.769,90.731,6.0]
[1645210536802,45.57107491,90.769,90.73,16.5388]
[1645210537003,45.57107491,90.769,90.721,23.0856]
[1645210537202,1.55722331,90.762,90.721,23.0856]
[1645210537404,1.55722331,90.761,90.712,1.04862032]
[1645210538004,1.55722331,90.76,90.712,1.04862032]
[1645210538707,1.55722331,90.759,90.712,1.04862032]
[1645210539103,1.55722331,90.759,90.71,17.58794857]
[1645210539503,1.55722331,90.757,90.71,17.58794857]
[1645210539705,1.55722331,90.756,90.71,17.58794857]
[1645210539903,1.55722331,90.759,90.71,17.58794857]
[1645210540303,1.55722331,90.76,90.71,17.58794857]
[1645210540903,1.55722331,90.759,90.71,17.58794857]
[1645210543014,1.55722331,90.753,90.71,17.58794857]
[1645210543215,1.55722331,90.749,90.71,1.04694857]
[1645210543414,1.55722331,90.745,90.71,1.04694857]
[1645210544014,1.55722331,90.745,90.706,6.55862032]
[1645210544315,1.55722331,90.747,90.706,6.55862032]
[1645210544819,1.55722331,90.748,90.706,6.55862032]
[1645210545117,1.55722331,90.747,90.706,6.55862032]
[1645210546119,1.55722331,90.746,90.706,1.04862032]
[1645210546321,1.55722331,90.748,90.706,1.04862032]
[1645210546518,1.55722331,90.747,90.706,1.04862032]
[1645210546718,1.55722331,90.746,90.706,1.04862032]
[1645210546918,1.55722331,90.747,90.706,1.04862032]
[1645210547319,1.55722331,90.747,90.71,16.5421]
[1645210547719,1.55722331,90.754,90.71,16.5421]
[1645210548643,1.55722331,90.755,90.711,2.6293831]
[1645210548837,45.57107491,90.769,90.72,16.5387]
[1645210548838,1.55722331,90.758,90.72,16.5387]
[1645210549834,1.55722331,90.759,90.72,16.5387]
[1645210550034,1.55722331,90.76,90.721,8.1393831]
[1645210550335,1.55722331,90.769,90.73,16.5367]
[1645210550535,1.55722331,90.771,90.73,16.5367]
[1645210550734,1.55722331,90.771,90.731,26.4917831]
[1645210550937,1.55722331,90.771,90.731,23.8624]
[1645210551135,1.55722331,90.775,90.731,23.8624]
[1645210551336,46.1397443,90.779,90.732,8.1383831]
[1645210551337,1.55722331,90.777,90.732,8.1383831]
[1645210551734,1.55722331,90.778,90.732,5.509]
[1645210551936,1.55722331,90.775,90.731,23.8624]
[1645210552135,1.55722331,90.774,90.731,23.8624]
[1645210552335,1.55722331,90.774,90.74,16.5364]
[1645210552535,1.55722331,90.777,90.74,16.5364]
[1645210552735,46.1397443,90.779,90.74,16.5364]
[1645210552736,47.69696761,90.779,90.74,16.5364]
[1645210552936,46.1397443,90.779,90.74,16.5364]
[1645210556241,1.55722331,90.784,90.74,16.5364]
[1645210556641,1.55722331,90.789,90.74,16.5364]
[1645210556840,1.55722331,90.787,90.74,16.5364]
[1645210557442,40.52849424,90.786,90.74,16.5364]
[1645210558243,40.52849424,90.786,90.732,5.509]
[1645210558443,5.509,90.785,90.732,5.509]
[1645210558645,1.55722331,90.773,90.732,5.509]
[1645210559243,1.55722331,90.772,90.742,1.04406195]
[1645210559444,1.55722331,90.771,90.742,1.04406195]
[1645210559845,1.55722331,90.777,90.742,1.04406195]
[1645210560050,1.55722331,90.775,90.742,1.04406195]
[1645210560449,1.55722331,90.772,90.742,1.04406195]
[1645210561949,1.55722331,90.771,90.742,1.04406195]
[1645210562548,1.55722331,90.773,90.742,1.04406195]
[1645210562748,1.55722331,90.771,90.742,1.04406195]
[1645210562950,1.55722331,90.772,90.742,1.04406195]
[1645210563149,1.55722331,90.76,90.742,1.04406195]
[1645210563350,1.55722331,90.757,90.742,1.04406195]
[1645210563551,52.55760024,90.756,90.742,1.04406195]
[1645210564055,1.55722331,90.755,90.742,1.04406195]
[1645210564251,1.55722331,90.755,90.732,7.93622635]
[1645210564453,1.55722331,90.754,90.732,7.93622635]
[1645210564652,51.00037693,90.756,90.732,7.93622635]
[1645210565052,5.51,90.783,90.732,7.93622635]
[1645210565053,1.55722331,90.765,90.732,7.93622635]
[1645210565452,1.55722331,90.768,90.732,7.93622635]
[1645210565652,1.55722331,90.772,90.732,7.93622635]
[1645210565853,1.55722331,90.769,90.732,7.93622635]
[1645210566056,48.40416562,90.768,90.732,7.93622635]
[1645210567459,1.55722331,90.771,90.732,7.93622635]
[1645210567959,1.55722331,90.774,90.732,7.93622635]
[1645210568355,1.55722331,90.772,90.732,7.93622635]
[1645210568856,1.55722331,90.771,90.732,7.93622635]
[1645210569259,1.55722331,90.771,90.734,1.04527722]
[1645210569457,1.55722331,90.765,90.734,1.04527722]
[1645210569660,1.55722331,90.764,90.734,1.04527722]
[1645210569855,5.509,90.772,90.734,1.04527722]
[1645210569856,1.55722331,90.763,90.734,1.04527722]
[1645210570256,1.55722331,90.761,90.734,1.04527722]
[1645210570460,1.55722331,90.757,90.734,1.04527722]
[1645210571367,1.55722331,90.763,90.734,1.04527722]
[1645210571761,47.5808984,90.773,90.734,1.04527722]
[1645210571762,1.55722331,90.765,90.734,1.04527722]
[1645210572056,47.5808984,90.773,90.734,1.04527722]
[1645210572057,1.55722331,90.766,90.734,1.04527722]
[1645210572257,1.55722331,90.762,90.734,1.04527722]
[1645210572457,1.55722331,90.759,90.734,1.04527722]
[1645210573459,1.55722331,90.761,90.734,1.04527722]
[1645210573859,1.55722331,90.762,90.734,1.04527722]
[1645210574062,1.55722331,90.762,90.732,7.93744156]
[1645210574262,1.55722331,90.763,90.732,7.93744156]
[1645210574460,1.55722331,90.762,90.732,7.93744156]
[1645210575463,1.55722331,90.761,90.732,7.93744156]
[1645210575665,1.55722331,90.762,90.732,7.93744156]
[1645210576663,1.55722331,90.763,90.732,7.93744156]
[1645210576865,1.55722331,90.762,90.732,7.93744156]
[1645210577265,1.55722331,90.76,90.732,7.93744156]
[1645210577864,1.55722331,90.759,90.732,7.93744156]
[1645210578064,1.55722331,90.76,90.732,7.93744156]
[1645210578272,1.55722331,90.762,90.732,7.93744156]
[1645210578464,1.55722331,90.761,90.732,7.93744156]
[1645210578668,1.55722331,90.763,90.732,7.93744156]
[1645210578865,1.55722331,90.764,90.732,7.93744156]
[1645210579065,1.55722331,90.764,90.734,1.04527722]
[1645210579267,47.5808984,90.773,90.734,1.04527722]
[1645210579268,49.13812171,90.773,90.734,1.04527722]
[1645210579469,47.5808984,90.773,90.734,1.04527722]
[1645210580065,1.55722331,90.774,90.734,1.04527722]
[1645210580664,1.55722331,90.775,90.734,1.04527722]
[1645210580865,111.6,90.794,90.734,1.04527722]
[1645210580866,1.55722331,90.774,90.734,1.04527722]
[1645210581067,45.50464651,90.774,90.734,1.04527722]
[1645210582067,47.06186982,90.774,90.734,1.04527722]
[1645210582265,45.50464651,90.774,90.734,1.04527722]
[1645210582666,47.06186982,90.774,90.734,1.04527722]
[1645210583171,45.50464651,90.774,90.734,1.04527722]
[1645210583568,47.06186982,90.774,90.734,1.04527722]
[1645210583769,45.50464651,90.774,90.734,1.04527722]
[1645210583968,1.55722331,90.769,90.734,1.04527722]
[1645210584172,1.55722331,90.762,90.734,1.04527722]
[1645210584369,52.86402791,90.76,90.732,7.93744156]
[1645210584970,54.42125122,90.76,90.732,7.93744156]
[1645210585571,1.55722331,90.759,90.732,7.93744156]
[1645210585780,7.06622331,90.759,90.732,7.93744156]
[1645210585970,1.55722331,90.756,90.732,7.93744156]
[1645210586574,1.55722331,90.755,90.732,7.93744156]
[1645210587572,1.55722331,90.754,90.732,7.93744156]
[1645210587974,1.55722331,90.755,90.732,7.93744156]
[1645210588974,1.55722331,90.758,90.732,7.93744156]
[1645210589174,1.55722331,90.757,90.734,1.04527722]
[1645210589575,1.55722331,90.758,90.734,1.04527722]
[1645210589997,1.55722331,90.759,90.734,1.04527722]
[1645210590396,1.55722331,90.765,90.734,1.04527722]
[1645210590998,1.55722331,90.766,90.734,1.04527722]
[1645210591499,1.55722331,90.765,90.734,1.04527722]
[1645210591698,1.55722331,90.762,90.734,1.04527722]
[1645210591897,1.55722331,90.761,90.734,1.04527722]
[1645210592099,1.55722331,90.76,90.734,1.04527722]
[1645210592299,44.7733037,90.76,90.734,1.04527722]
[1645210592900,1.55722331,90.758,90.734,1.04527722]
[1645210593298,1.55722331,90.759,90.734,1.04527722]
[1645210593499,1.55722331,90.758,90.734,1.04527722]
[1645210593699,1.55722331,90.759,90.734,1.04527722]
[1645210593900,43.35203723,90.758,90.734,1.04527722]
[1645210594100,43.35203723,90.758,90.732,7.93744156]
[1645210596005,1.55722331,90.758,90.732,7.93744156]
[1645210597404,46.97040192,90.757,90.732,7.93744156]
[1645210598012,48.52762523,90.757,90.732,7.93744156]
[1645210598206,46.97040192,90.757,90.732,7.93744156]
[1645210598405,1.55722331,90.757,90.732,7.93744156]
[1645210599110,1.55722331,90.757,90.734,1.04527722]
[1645210599511,53.41953707,90.757,90.734,1.04527722]
[1645210600614,1.55722331,90.757,90.734,1.04527722]
[1645210600913,1.55722331,90.76,90.734,1.04527722]
[1645210601114,1.55722331,90.759,90.734,1.04527722]
[1645210602113,1.55722331,90.76,90.734,1.04527722]
[1645210602714,1.55722331,90.759,90.734,1.04527722]
[1645210603214,1.55722331,90.762,90.734,1.04527722]
[1645210604013,1.55722331,90.763,90.732,7.93744156]
[1645210604414,1.55722331,90.762,90.732,7.93744156]
[1645210605314,1.55722331,90.761,90.732,7.93744156]
[1645210607717,1.55722331,90.76,90.732,7.93744156]
[1645210608918,1.55722331,90.76,90.734,1.04527722]
[1645210609118,1.55722331,90.761,90.734,1.04527722]
[1645210610420,1.55722331,90.76,90.734,1.04527722]
[1645210610821,1.55722331,90.761,90.734,1.04527722]
[1645210611425,1.55722331,90.76,90.734,1.04527722]
[1645210611622,1.55722331,90.757,90.734,1.04527722]
[1645210612021,111.6,90.746,90.67,71.169]
[1645210612223,1.55722331,90.743,90.671,23.098]
[1645210612424,58.11190682,90.742,90.671,23.098]
[1645210612622,1.55722331,90.734,90.671,23.098]
[1645210613023,1.55722331,90.733,90.671,23.098]
[1645210613224,1.55722331,90.732,90.671,23.098]
[1645210613423,1.55722331,90.732,90.69,16.5459]
[1645210613623,1.55722331,90.734,90.691,22.5541]
[1645210613823,1.55722331,90.735,90.691,22.5541]
[1645210614222,1.55722331,90.736,90.691,22.5541]
[1645210614622,1.55722331,90.737,90.691,22.5541]
[1645210614825,1.55722331,90.738,90.691,22.5541]
[1645210615027,7.06822331,90.737,90.691,22.5541]
[1645210615227,1.55722331,90.735,90.691,22.5541]
[1645210615429,5.511,90.737,90.691,22.5541]
[1645210615430,1.55722331,90.737,90.691,22.5541]
[1645210615641,111.6,90.735,90.691,22.5541]
[1645210615832,1.55722331,90.729,90.67,16.5483]
[1645210616034,1.55722331,90.724,90.67,16.5483]
[1645210616247,7.06822331,90.723,90.67,16.5483]
[1645210616449,46.59105265,90.722,90.67,16.5483]
[1645210616647,5.511,90.721,90.67,16.5483]
[1645210617148,5.511,90.725,90.67,16.5483]
[1645210617750,47.44871802,90.727,90.67,16.5483]
[1645210618850,41.93771802,90.727,90.67,16.5483]
[1645210619251,5.511,90.726,90.693,0.92084919]
[1645210619453,16.5517,90.72,90.693,0.92084919]
[1645210619654,5.511,90.719,90.693,0.92084919]
[1645210621653,41.93771802,90.727,90.693,0.92084919]
[1645210624058,41.93771802,90.727,90.67,17.47044508]
[1645210624259,111.6,90.726,90.67,17.47044508]
[1645210624459,5.511,90.725,90.67,17.47044508]
[1645210624660,5.511,90.726,90.67,17.47044508]
[1645210625062,111.6,90.725,90.67,17.47044508]
[1645210625262,5.511,90.724,90.67,17.47044508]
[1645210625463,111.6,90.725,90.67,17.47044508]
[1645210626064,22.9833,90.724,90.67,17.47044508]
[1645210626468,16.5517,90.72,90.67,0.92054508]
[1645210626666,5.511,90.719,90.67,0.92054508]
[1645210628569,16.5533,90.71,90.67,0.92054508]
[1645210628769,16.5533,90.71,90.663,25.73774318]
[1645210629068,42.51188441,90.709,90.663,25.73774318]
[1645210629469,5.513,90.708,90.663,25.73774318]
[1645210631571,5.513,90.722,90.663,25.73774318]
[1645210631772,111.6,90.723,90.664,2.6293831]
[1645210632373,44.71891553,90.722,90.663,31.25074318]
[1645210632575,5.513,90.721,90.67,16.5501]
[1645210634476,44.71891553,90.722,90.67,16.5501]
[1645210637900,44.71891553,90.722,90.665,0.92510817]
[1645210638099,5.513,90.721,90.665,0.92510817]
[1645210638501,16.5517,90.72,90.665,0.92510817]
[1645210638698,5.513,90.719,90.665,0.92510817]
[1645210638999,111.6,90.718,90.665,0.92510817]
[1645210639200,111.6,90.716,90.665,0.92510817]
[1645210639600,111.6,90.716,90.663,31.2479977]
[1645210640201,111.6,90.718,90.663,31.2479977]
[1645210640401,111.6,90.716,90.663,31.2479977]
[1645210641502,1.55722331,90.718,90.663,31.2479977]
[1645210641707,1.55722331,90.721,90.67,16.5499]
[1645210642001,44.71891553,90.722,90.67,16.5499]
[1645210644616,46.27613884,90.722,90.67,16.5499]
[1645210645017,0.56969768,90.715,90.67,16.5499]
[1645210645217,0.56969768,90.715,90.663,30.3247]
[1645210646218,0.56969768,90.715,90.67,16.5498]
[1645210646616,0.56969768,90.715,90.67,32.5698]
[1645210648318,0.56969768,90.715,90.671,8.3923831]
[1645210648517,0.56969768,90.715,90.68,16.5443]
[1645210648721,0.56969768,90.715,90.681,28.3259]
[1645210649017,0.56969768,90.715,90.681,30.9552831]
[1645210649218,0.56969768,90.715,90.682,2.6293831]
[1645210649418,0.56969768,90.715,90.683,5.511]
[1645210649618,0.56969768,90.715,90.682,8.1403831]
[1645210649818,0.56969768,90.715,90.684,2.6293831]
[1645210650018,40.40143732,90.728,90.69,16.5451]
[1645210650418,0.57064683,90.728,90.69,16.5451]
[1645210650618,0.57064683,90.728,90.691,23.8879]
[1645210651018,0.57064683,90.728,90.692,5.511]
[1645210651719,0.57064683,90.728,90.7,16.5441]
[1645210651919,0.57064683,90.728,90.7,32.5641]
[1645210652120,0.57064683,90.728,90.701,26.8999831]
[1645210652520,0.57064683,90.728,90.702,2.6293831]
[1645210653322,0.57064683,90.728,90.71,16.5418]
[1645210655228,55.10222501,90.753,90.71,16.5418]
[1645210656226,55.10222501,90.753,90.701,24.2706]
[1645210656431,1.55722331,90.749,90.701,24.2706]
[1645210656630,1.55722331,90.746,90.693,0.92010411]
[1645210656830,117.111,90.745,90.693,0.92010411]
[1645210657129,111.6,90.737,90.693,0.92010411]
[1645210657330,111.6,90.735,90.693,0.92010411]
[1645210657528,5.511,90.734,90.693,0.92010411]
[1645210657729,7.06822331,90.737,90.693,0.92010411]
[1645210658228,30.22552331,90.737,90.693,0.92010411]
[1645210658629,111.6,90.736,90.693,0.92010411]
[1645210658829,111.6,90.729,90.693,0.92010411]
[1645210659032,113.15722331,90.729,90.693,0.92010411]
[1645210659229,1.55722331,90.72,90.693,0.92010411]
[1645210659429,111.6,90.718,90.693,0.92010411]
[1645210659630,7.06822331,90.719,90.693,0.92010411]
[1645210659631,152.37760597,90.716,90.693,0.92010411]
[1645210659831,5.511,90.715,90.693,0.92010411]
[1645210660132,40.77760597,90.716,90.693,0.92010411]
[1645210660335,23.5729,90.715,90.693,0.92010411]
[1645210660531,23.5729,90.715,90.651,22.5096]
[1645210661154,5.513,90.714,90.66,16.5519]
[1645210662136,40.77760597,90.716,90.66,16.5519]
[1645210662337,3.0932526,90.746,90.66,16.5519]
[1645210662338,1.55722331,90.728,90.67,16.5485]
[1645210662533,1.55722331,90.728,90.671,24.1343]
[1645210662735,1.55722331,90.735,90.671,26.7636831]
[1645210662934,1.55722331,90.735,90.672,2.6293831]
[1645210663133,1.55722331,90.736,90.672,2.6293831]
[1645210663334,45.03802163,90.735,90.672,2.6293831]
[1645210664335,45.03802163,90.735,90.68,16.5471]
[1645210664941,46.59524494,90.735,90.68,16.5471]
[1645210665542,45.03802163,90.735,90.68,16.5471]
[1645210665742,46.59524494,90.735,90.68,16.5471]
[1645210667648,5.511,90.734,90.68,16.5471]
[1645210667848,1.55722331,90.732,90.68,16.5471]
[1645210668660,5.511,90.731,90.68,16.5471]
[1645210668866,18.10752331,90.73,90.671,24.1343]
[1645210669067,1.55722331,90.729,90.67,16.55]
[1645210669269,1.55722331,90.724,90.67,16.55]
[1645210669466,5.511,90.723,90.682,0.92177688]
[1645210670066,5.511,90.724,90.682,0.92177688]
[1645210670268,1.55722331,90.727,90.682,0.92177688]
[1645210670468,5.511,90.726,90.682,0.92177688]
[1645210671169,39.30716459,90.719,90.682,0.92177688]
[1645210671369,5.511,90.718,90.682,0.92177688]
[1645210671568,39.30716459,90.719,90.682,0.92177688]
[1645210671971,5.511,90.718,90.682,0.92177688]
[1645210672374,39.30716459,90.719,90.682,0.92177688]
[1645210673972,39.30716459,90.719,90.654,25.87547271]
[1645210675376,39.30716459,90.719,90.67,16.5499]
[1645210676178,39.30716459,90.719,90.671,23.9389]
[1645210678979,7.06822331,90.728,90.671,23.9389]
[1645210679682,0.57010444,90.718,90.671,23.9389]
[1645210680179,48.62372764,90.717,90.671,23.9389]
[1645210680381,0.57010444,90.718,90.68,16.5479]
[1645210680980,0.57010444,90.718,90.681,2.6293831]
[1645210681181,1.55722331,90.745,90.682,5.511]
[1645210681381,1.55722331,90.747,90.682,5.511]
[1645210681585,1.55722331,90.747,90.69,16.5432]
[1645210681782,1.55722331,90.746,90.691,5.511]
[1645210681983,1.55722331,90.745,90.692,22.9266]
[1645210682183,1.55722331,90.744,90.692,22.9266]
[1645210682582,53.08224787,90.751,90.692,22.9266]
[1645210682583,1.55722331,90.746,90.692,22.9266]
[1645210682883,1.55722331,90.745,90.692,22.9266]
[1645210683084,1.55722331,90.744,90.692,22.9266]
[1645210683289,1.55722331,90.74,90.692,22.9266]
[1645210683485,1.55722331,90.736,90.692,22.9266]
[1645210683783,1.55722331,90.738,90.692,22.9266]
[1645210684082,1.55722331,90.738,90.68,16.548]
[1645210684284,113.15722331,90.736,90.681,23.7246]
[1645210684485,1.55722331,90.734,90.681,23.7246]
[1645210684686,1.55722331,90.728,90.681,23.7246]
[1645210684883,1.55722331,90.725,90.681,23.7246]
[1645210685284,42.25603983,90.716,90.681,23.7246]
[1645210685784,0.56996886,90.717,90.681,23.7246]
[1645210687484,49.88559604,90.716,90.681,23.7246]
[1645210689287,0.56996886,90.717,90.681,23.7246]
[1645210690488,0.6645795,90.725,90.681,23.7246]
[1645210691097,0.6645795,90.725,90.69,16.5461]
[1645210691494,0.6645795,90.725,90.681,23.7246]
[1645210692396,52.25026453,90.724,90.681,23.7246]
[1645210693096,1.55722331,90.723,90.681,23.7246]
[1645210693294,1.55722331,90.722,90.681,23.7246]
[1645210693695,1.55722331,90.72,90.681,23.7246]
[1645210694097,1.55722331,90.719,90.681,23.7246]
[1645210695419,1.55722331,90.719,90.683,1.0581617]
[1645210695621,1.55722331,90.72,90.683,1.0581617]
[1645210696720,1.55722331,90.719,90.683,1.0581617]
[1645210699720,1.55722331,90.719,90.681,24.7827617]
[1645210700421,1.55722331,90.719,90.681,1.0581617]
[1645210701024,1.55722331,90.714,90.681,1.0581617]
[1645210701229,1.55722331,90.71,90.681,1.0581617]
[1645210701426,1.55722331,90.697,90.653,0.92618884]
[1645210701625,1.55722331,90.695,90.653,0.92618884]
[1645210701826,111.6,90.693,90.653,0.92618884]
[1645210702025,111.6,90.689,90.653,0.92618884]
[1645210702224,111.6,90.687,90.653,0.92618884]
[1645210702825,41.62382967,90.686,90.653,0.92618884]
[1645210704228,41.62382967,90.686,90.683,1.0581617]
[1645210704432,7.963,90.685,90.683,1.0581617]
[1645210706733,40.07580249,90.684,90.683,1.0581617]
[1645210706935,45.58880249,90.684,90.683,1.0581617]
[1645210708134,5.513,90.684,90.683,1.0581617]
[1645210708334,2.45,90.685,90.683,1.0581617]
[1645210709536,2.45,90.685,90.653,0.92618884]
[1645210709735,0.62650006,90.684,90.653,0.92618884]
[1645210711538,48.44758754,90.683,90.653,0.92618884]
[1645210711739,0.62650006,90.684,90.653,0.92618884]
[1645210715037,0.62744986,90.71,90.653,0.92618884]
[1645210715237,5.513,90.709,90.653,0.92618884]
[1645210715442,0.62744986,90.71,90.653,0.92618884]
[1645210715843,0.62744986,90.71,90.66,16.5518]
[1645210716041,0.62744986,90.71,90.661,0.25]
[1645210716240,4.986e-05,90.71,90.661,143.87313867]
[1645210716540,4.986e-05,90.71,90.663,111.6]
[1645210716744,4.986e-05,90.71,90.664,146.0215]
[1645210717040,4.986e-05,90.71,90.664,166.53163867]
[1645210717238,4.986e-05,90.71,90.665,2.6293831]
[1645210717448,4.986e-05,90.71,90.68,16.02]
[1645210717641,4.986e-05,90.71,90.681,6.25]
[1645210717841,4.986e-05,90.71,90.682,5.511]
[1645210718045,4.986e-05,90.71,90.682,8.1403831]
[1645210718241,4.986e-05,90.71,90.683,111.6]
[1645210718441,4.986e-05,90.71,90.684,5.511]
[1645210718642,4.986e-05,90.71,90.685,6.0]
[1645210718843,4.986e-05,90.71,90.69,16.02]
[1645210719043,4.986e-05,90.71,90.691,5.761]
[1645210719242,4.986e-05,90.71,90.7,16.5417]
[1645210719540,4.986e-05,90.71,90.701,5.511]
[1645210719941,4.986e-05,90.71,90.702,0.58219996]
[1645210720142,4.986e-05,90.71,90.703,5.511]
[1645210720441,45.54011983,90.752,90.71,16.5425]
[1645210724749,44.90914373,90.752,90.712,0.99988645]